[Event "DVM U16w 2024"]
[Site "Neumuenster"]
[Date "2024.12.29"]
[Round "6"]
[White "Koeppel, Clementine"]
[Black "Wu, Zixuan Anja"]
[Result "1-0"]
[ECO "C10"]
[WhiteElo "1555"]
[BlackElo "1089"]
[Annotator "NA RC"]
[PlyCount "113"]
[EventDate "2024.12.23"]
[EventType "team-tourn"]
[EventRounds "7"]
[EventCountry "GER"]
[SourceTitle "playchess.com"]
[Source "ChessBase"]
[SourceQuality "1"]
[TimeControl "40/5400+30:1800+30"]

1. e4 {[%emt 0:00:01]} e6 {[%emt 0:00:11]} 2. d4 {[%emt 0:00:07]} d5 {[%emt 0:00:04]} 3. Nc3 {[%emt 0:00:09]} dxe4 {[%emt 0:00:11]} 4. Nxe4 {[%emt 0:00:09]} Nf6 {[%emt 0:00:42]} 5. Bd3 {[%emt 0:00:27]} Be7 {[%emt 0:00:18]} 6. Nf3 {[%emt 0:01:29]} Nbd7 {[%emt 0:01:06]} 7. c3 {[%emt 0:02:11]} b6 {[%emt 0:00:35]} 8. Qc2 {[%emt 0:02:48]} Bb7 {[%emt 0:00:53]} 9. O-O {[%emt 0:04:55]} O-O {[%emt 0:01:08]} 10. Nxf6+ {[%emt 0:03:27]} Nxf6 {[%emt 0:01:48]} 11. Ng5 {[%emt 0:10:50]} g6 {[%emt 0:02:44]} 12. Bf4 {[%emt 0:11:52]} Qd5 {[%emt 0:05:18]} 13. f3 {[%emt 0:02:38]} Nh5 {[%emt 0:02:58]} 14. Nxh7 {[%emt 0:07:01]} Nxf4 {[%emt 0:03:14]} 15. Be4 {[%emt 0:04:55]} Qh5 {[%emt 0:05:15]} 16. Bxb7 {[%emt 0:08:41]} Qxh7 {[%emt 0:01:23]} 17. Bxa8 {[%emt 0:00:52]} Rxa8 {[%emt 0:00:14]} 18. Qe4 {[%emt 0:00:52]} Rd8 {[%emt 0:01:25]} 19. Qxf4 {[%emt 0:05:11]} Bd6 {[%emt 0:05:16]} 20. Qg5 {[%emt 0:02:19]} Qxh2+ {[%emt 0:02:45]} 21. Kf2 {[%emt 0:00:30]} Bg3+ {[%emt 0:01:59]} 22. Qxg3 {[%emt 0:00:46]} Qxg3+ {[%emt 0:01:04]} 23. Kxg3 {[%emt 0:00:07]} c5 {[%emt 0:02:33]} 24. dxc5 {[%emt 0:00:10]} bxc5 {[%emt 0:00:11]} 25. Rfd1 {[%emt 0:00:15]} Rb8 {[%emt 0:00:44]} 26. b3 {[%emt 0:02:04]} Kf8 {[%emt 0:00:39]} 27. Rd7 {[%emt 0:00:20]} a5 {[%emt 0:01:07]} 28. Rc7 {[%emt 0:00:39]} Ra8 {[%emt 0:01:44]} 29. Rxc5 {[%emt 0:01:29]} Ke7 {[%emt 0:01:02]} 30. Rd1 {[%emt 0:00:56]} f5 {[%emt 0:01:01]} 31. Kf4 {[%emt 0:01:21]} a4 {[%emt 0:00:41]} 32. b4 {[%emt 0:00:47]} Kf6 {[%emt 0:01:44]} 33. g4 {[%emt 0:03:10]} g5+ {[%emt 0:01:04]} 34. Ke3 {[%emt 0:00:24]} f4+ {[%emt 0:01:25]} 35. Ke4 {[%emt 0:00:44]} Rh8 {[%emt 0:03:20]} 36. Rd2 {[%emt 0:07:14]} Ra8 {[%emt 0:00:54]} 37. Rh2 {[%emt 0:02:46]} Rd8 {[%emt 0:01:16]} 38. Ra5 {[%emt 0:01:06]} a3 {[%emt 0:00:33]} 39. Rxa3 {[%emt 0:00:45]} Rd5 {[%emt 0:00:54]} 40. Ra5 {[%emt 0:00:27]} Rd1 {[%emt 0:01:22]} 41. Rh6+ {[%emt 0:35:39]} Ke7 {[%emt 0:31:21]} 42. Rxg5 {[%emt 0:04:33]} Re1+ {[%emt 0:02:59]} 43. Kxf4 {[%emt 0:00:16]} Re2 {[%emt 0:00:29]} 44. Re5 {[%emt 0:01:54]} Rxe5 {[%emt 0:01:41]} 45. Kxe5 {[%emt 0:00:07]} Kd7 {[%emt 0:00:34]} 46. g5 {[%emt 0:00:19]} Kc6 {[%emt 0:00:16]} 47. g6 {[%emt 0:00:11]} Kb5 {[%emt 0:00:03]} 48. g7 {[%emt 0:00:09]} Ka4 {[%emt 0:00:02]} 49. g8=Q {[%emt 0:00:19]} Ka3 {[%emt 0:00:07]} 50. Qa8+ {[%emt 0:00:37]} Kb2 {[%emt 0:00:22]} 51. Rh2+ {[%emt 0:00:09]} Kxc3 {[%emt 0:00:06]} 52. Kf6 {[%emt 0:01:39]} Kc4 {[%emt 0:01:09]} 53. Rd2 {[%emt 0:00:27]} Kc3 {[%emt 0:00:10]} 54. Rd7 {[%emt 0:00:23]} Kc4 {[%emt 0:00:25]} 55. Qc6+ {[%emt 0:00:14]} Kxb4 {[%emt 0:00:11]} 56. Rb7+ {[%emt 0:00:08]} Ka5 {[%emt 0:00:05]} 57. Qb5# {[%emt 0:00:13]} 1-0

[Event "DVM U16w 2024"]
[Site "Neumuenster"]
[Date "2024.12.29"]
[Round "6"]
[White "Weidner, Marit"]
[Black "Blome, Antonia"]
[Result "1-0"]
[ECO "B47"]
[WhiteElo "1553"]
[BlackElo "1228"]
[Annotator "NA RC"]
[PlyCount "117"]
[EventDate "2024.12.23"]
[EventType "team-tourn"]
[EventRounds "7"]
[EventCountry "GER"]
[SourceTitle "playchess.com"]
[Source "ChessBase"]
[SourceQuality "1"]
[TimeControl "40/5400+30:1800+30"]

1. e4 {[%emt 0:00:02]} c5 {[%emt 0:00:07]} 2. Nf3 {[%emt 0:00:03]} e6 {[%emt 0:00:07]} 3. d4 {[%emt 0:00:18]} cxd4 {[%emt 0:00:07]} 4. Nxd4 {[%emt 0:00:04]} Nc6 {[%emt 0:00:08]} 5. Nc3 {[%emt 0:00:23]} Qc7 {[%emt 0:00:59]} 6. Nf3 {[%emt 0:00:41]} Nf6 {[%emt 0:00:56]} 7. Bc4 {[%emt 0:02:20]} Bc5 {[%emt 0:02:08]} 8. Qe2 {[%emt 0:01:14]} d6 {[%emt 0:03:27]} 9. Be3 {[%emt 0:01:11]} Bb4 {[%emt 0:04:53]} 10. Bd2 {[%emt 0:01:25]} a6 {[%emt 0:00:58]} 11. a3 {[%emt 0:01:36]} Bc5 {[%emt 0:00:59]} 12. O-O {[%emt 0:01:55]} O-O {[%emt 0:01:11]} 13. Rad1 {[%emt 0:00:42]} b5 {[%emt 0:01:01]} 14. Bb3 {[%emt 0:02:25]} Bb7 {[%emt 0:01:09]} 15. Bf4 {[%emt 0:01:39]} Rad8 {[%emt 0:04:45]} 16. e5 {[%emt 0:03:26]} dxe5 {[%emt 0:00:27]} 17. Nxe5 {[%emt 0:07:23]} Nd4 {[%emt 0:05:57]} 18. Qe1 {[%emt 0:01:10]} Qe7 {[%emt 0:04:38]} 19. Ne2 {[%emt 0:05:57]} Nxe2+ {[%emt 0:04:42]} 20. Qxe2 {[%emt 0:00:25]} Nd5 {[%emt 0:00:14]} 21. Bxd5 {[%emt 0:06:33]} Bxd5 {[%emt 0:03:12]} 22. Qg4 {[%emt 0:01:45]} f6 {[%emt 0:01:14]} 23. Nd3 {[%emt 0:01:13]} Bd6 {[%emt 0:02:07]} 24. Bxd6 {[%emt 0:01:07]} Rxd6 {[%emt 0:00:52]} 25. Rfe1 {[%emt 0:00:56]} e5 {[%emt 0:00:52]} 26. Qb4 {[%emt 0:02:24]} Rfd8 {[%emt 0:06:45]} 27. Nf4 {[%emt 0:16:03]} Qd7 {[%emt 0:01:58]} 28. Nxd5 {[%emt 0:01:12]} Rxd5 {[%emt 0:00:10]} 29. Qb3 {[%emt 0:03:04]} Kf8 {[%emt 0:00:53]} 30. Rxd5 {[%emt 0:00:36]} Qxd5 {[%emt 0:00:07]} 31. Qc3 {[%emt 0:00:33]} Qc4 {[%emt 0:01:54]} 32. Qxc4 {[%emt 0:03:21]} bxc4 {[%emt 0:00:12]} 33. Kf1 {[%emt 0:00:01]} Ke7 {[%emt 0:00:25]} 34. Re4 {[%emt 0:01:07]} Rd4 {[%emt 0:00:20]} 35. Re3 {[%emt 0:02:11]} h5 {[%emt 0:00:53]} 36. g3 {[%emt 0:01:12]} g5 {[%emt 0:00:15]} 37. Ke2 {[%emt 0:00:27]} h4 {[%emt 0:01:01]} 38. c3 {[%emt 0:00:33]} Rd3 {[%emt 0:01:26]} 39. Rxd3 {[%emt 0:00:50]} cxd3+ {[%emt 0:00:08]} 40. Kxd3 {[%emt 0:00:04]} hxg3 {[%emt 0:00:14]} 41. hxg3 {[%emt 0:30:07]} f5 {[%emt 0:30:15]} 42. f3 {[%emt 0:03:14]} Kd6 {[%emt 0:00:30]} 43. c4 {[%emt 0:00:23]} a5 {[%emt 0:03:45]} 44. b4 {[%emt 0:00:43]} axb4 {[%emt 0:00:11]} 45. axb4 {[%emt 0:00:12]} Kc6 {[%emt 0:01:00]} 46. g4 {[%emt 0:01:48]} e4+ {[%emt 0:02:09]} 47. fxe4 {[%emt 0:00:16]} fxg4 {[%emt 0:00:18]} 48. Ke3 {[%emt 0:00:22]} Kd6 {[%emt 0:00:32]} 49. b5 {[%emt 0:00:32]} Kc5 {[%emt 0:00:59]} 50. e5 {[%emt 0:00:14]} g3 {[%emt 0:00:28]} 51. Kf3 {[%emt 0:00:33]} Kxc4 {[%emt 0:00:42]} 52. b6 {[%emt 0:00:06]} Kd5 {[%emt 0:01:31]} 53. b7 {[%emt 0:00:09]} g2 {[%emt 0:00:21]} 54. Kxg2 {[%emt 0:00:05]} Kxe5 {[%emt 0:00:05]} 55. b8=Q+ {[%emt 0:00:10]} Kf5 {[%emt 0:00:06]} 56. Qf8+ {[%emt 0:00:08]} Kg6 {[%emt 0:00:24]} 57. Kg3 {[%emt 0:00:14]} Kh5 {[%emt 0:00:29]} 58. Qg7 {[%emt 0:00:29]} g4 {[%emt 0:00:15]} 59. Qxg4+ {[%emt 0:00:04]} 1-0

[Event "DVM U16w 2024"]
[Site "Neumuenster"]
[Date "2024.12.29"]
[Round "6"]
[White "Schmidt, Emelie"]
[Black "Grey, Paula"]
[Result "1/2-1/2"]
[ECO "D06"]
[WhiteElo "1545"]
[BlackElo "1221"]
[Annotator "NA RC"]
[PlyCount "85"]
[EventDate "2024.12.23"]
[EventType "team-tourn"]
[EventRounds "7"]
[EventCountry "GER"]
[SourceTitle "playchess.com"]
[Source "ChessBase"]
[SourceQuality "1"]
[TimeControl "40/5400+30:1800+30"]

1. d4 {[%emt 0:00:01]} d5 {[%emt 0:00:08]} 2. c4 {[%emt 0:00:08]} c6 {[%emt 0:00:17]} 3. Nc3 {[%emt 0:00:08]} Nf6 {[%emt 0:00:26]} 4. Nf3 {[%emt 0:00:12]} Bf5 {[%emt 0:02:46]} 5. Bg5 {[%emt 0:00:34]} e6 {[%emt 0:01:55]} 6. e3 {[%emt 0:00:37]} h6 {[%emt 0:02:05]} 7. Bf4 {[%emt 0:00:52]} a6 {[%emt 0:06:24]} 8. a4 {[%emt 0:05:15]} Bb4 {[%emt 0:09:09]} 9. Bd3 {[%emt 0:09:15]} Ne4 {[%emt 0:10:26]} 10. Bxe4 {[%emt 0:01:23]} Bxe4 {[%emt 0:03:53]} 11. O-O {[%emt 0:03:01]} Bxc3 {[%emt 0:04:22]} 12. bxc3 {[%emt 0:01:06]} dxc4 {[%emt 0:01:55]} 13. Ne5 {[%emt 0:04:51]} b5 {[%emt 0:05:50]} 14. axb5 {[%emt 0:01:25]} cxb5 {[%emt 0:03:26]} 15. Qh5 {[%emt 0:01:44]} g6 {[%emt 0:05:03]} 16. Qh3 {[%emt 0:02:29]} h5 {[%emt 0:11:12]} 17. Ng4 {[%emt 0:07:22]} Bf5 {[%emt 0:07:03]} 18. Qf3 {[%emt 0:00:48]} Nd7 {[%emt 0:01:49]} 19. Ne5 {[%emt 0:01:09]} Nxe5 {[%emt 0:02:34]} 20. Bxe5 {[%emt 0:00:24]} Rg8 {[%emt 0:01:39]} 21. h3 {[%emt 0:01:14]} Qd5 {[%emt 0:01:46]} 22. Qe2 {[%emt 0:02:00]} Bd3 {[%emt 0:00:35]} 23. Qa2 {[%emt 0:02:15]} Bxf1 {[%emt 0:00:33]} 24. Kxf1 {[%emt 0:00:07]} Kd7 {[%emt 0:02:17]} 25. Qa5 {[%emt 0:00:30]} Rgc8 {[%emt 0:02:39]} 26. Qb4 {[%emt 0:00:45]} a5 {[%emt 0:00:43]} 27. Rxa5 {[%emt 0:01:49]} Rxa5 {[%emt 0:00:10]} 28. Qxa5 {[%emt 0:00:04]} Qc6 {[%emt 0:02:14]} 29. Qa7+ {[%emt 0:00:51]} Ke8 {[%emt 0:01:23]} 30. Bf6 {[%emt 0:01:08]} Qc7 {[%emt 0:00:59]} 31. Qa3 {[%emt 0:01:19]} Qb7 {[%emt 0:03:05]} 32. Qb4 {[%emt 0:00:57]} Ra8 {[%emt 0:01:06]} 33. Bg7 {[%emt 0:02:44]} Kd7 {[%emt 0:01:53]} 34. Bf6 {[%emt 0:00:39]} Ke8 {[%emt 0:00:53]} 35. Bg7 {[%emt 0:00:46]} Ra1+ {[%emt 0:00:13]} 36. Ke2 {[%emt 0:00:03]} Ra2+ {[%emt 0:00:31]} 37. Kf1 {[%emt 0:00:06]} Ra1+ {[%emt 0:00:34]} 38. Ke2 {[%emt 0:00:13]} Ra2+ {[%emt 0:00:44]} 39. Ke1 {[%emt 0:00:09]} Ra1+ {[%emt 0:02:51]} 40. Ke2 {[%emt 0:01:33]} Ra2+ {[%emt 0:00:32]} 41. Kf1 {[%emt 0:30:33]} Ra1+ {[%emt 0:10:37]} 42. Ke2 {[%emt 0:00:00]} Ra2+ {[%emt 0:00:05]} 43. Ke1 {[%emt 0:00:00]} 1/2-1/2

[Event "DVM U16w 2024"]
[Site "Neumuenster"]
[Date "2024.12.29"]
[Round "6"]
[White "Sniegowski, Victoria"]
[Black "Tok, Tuana"]
[Result "1/2-1/2"]
[ECO "C47"]
[WhiteElo "1536"]
[BlackElo "1520"]
[Annotator "NA RC"]
[PlyCount "102"]
[EventDate "2024.12.23"]
[EventType "team-tourn"]
[EventRounds "7"]
[EventCountry "GER"]
[SourceTitle "playchess.com"]
[Source "ChessBase"]
[SourceQuality "1"]
[TimeControl "40/5400+30:1800+30"]

1. e4 {[%emt 0:00:03]} e5 {[%emt 0:00:27]} 2. Nf3 {[%emt 0:00:06]} Nf6 {[%emt 0:00:18]} 3. Nc3 {[%emt 0:00:18]} Nc6 {[%emt 0:01:35]} 4. d4 {[%emt 0:00:41]} exd4 {[%emt 0:01:13]} 5. Nxd4 {[%emt 0:00:11]} Be7 {[%emt 0:00:30]} 6. Nxc6 {[%emt 0:02:48]} bxc6 {[%emt 0:00:07]} 7. Bf4 {[%emt 0:01:06]} O-O {[%emt 0:04:07]} 8. Bc4 {[%emt 0:02:33]} Bb4 {[%emt 0:00:00]} 9. f3 {[%emt 0:05:31]} Bxc3+ {[%emt 0:01:51]} 10. bxc3 {[%emt 0:00:29]} d5 {[%emt 0:00:18]} 11. Be2 {[%emt 0:08:09]} Bb7 {[%emt 0:12:14]} 12. Rb1 {[%emt 0:02:30]} Rb8 {[%emt 0:03:37]} 13. Qd4 {[%emt 0:05:48]} c5 {[%emt 0:11:14]} 14. Qxc5 {[%emt 0:02:20]} dxe4 {[%emt 0:01:24]} 15. Bxc7 {[%emt 0:01:17]} Qc8 {[%emt 0:02:03]} 16. Bd6 {[%emt 0:04:31]} Qxc5 {[%emt 0:01:19]} 17. Bxc5 {[%emt 0:00:48]} Bd5 {[%emt 0:01:44]} 18. O-O {[%emt 0:01:23]} Bxa2 {[%emt 0:00:46]} 19. Rxb8 {[%emt 0:01:10]} Rxb8 {[%emt 0:00:15]} 20. Bxa7 {[%emt 0:00:21]} Rb1 {[%emt 0:00:16]} 21. Rxb1 {[%emt 0:00:39]} Bxb1 {[%emt 0:00:09]} 22. c4 {[%emt 0:03:31]} exf3 {[%emt 0:02:32]} 23. Bxf3 {[%emt 0:02:42]} Bxc2 {[%emt 0:01:02]} 24. c5 {[%emt 0:00:40]} Bf5 {[%emt 0:00:46]} 25. h3 {[%emt 0:07:48]} h6 {[%emt 0:01:46]} 26. Kf2 {[%emt 0:00:30]} Kh7 {[%emt 0:03:12]} 27. Bb7 {[%emt 0:02:08]} Ne8 {[%emt 0:01:10]} 28. Bd5 {[%emt 0:01:51]} f6 {[%emt 0:04:43]} 29. Bb6 {[%emt 0:00:49]} g5 {[%emt 0:00:58]} 30. g4 {[%emt 0:01:00]} Bc8 {[%emt 0:00:50]} 31. Be4+ {[%emt 0:01:50]} Kg8 {[%emt 0:00:58]} 32. Bf5 {[%emt 0:00:13]} Bb7 {[%emt 0:00:23]} 33. Bd7 {[%emt 0:00:41]} Kf8 {[%emt 0:01:32]} 34. c6 {[%emt 0:00:37]} Ba6 {[%emt 0:00:11]} 35. c7 {[%emt 0:00:13]} Nd6 {[%emt 0:00:04]} 36. Bc5 {[%emt 0:00:28]} Ke7 {[%emt 0:00:29]} 37. Bxd6+ {[%emt 0:01:13]} Kxd7 {[%emt 0:00:07]} 38. Bh2 {[%emt 0:00:40]} Bb7 {[%emt 0:00:41]} 39. Bg3 {[%emt 0:02:37]} Be4 {[%emt 0:00:23]} 40. Kg1 {[%emt 0:01:52]} f5 {[%emt 0:00:24]} 41. gxf5 {[%emt 0:30:50]} Bxf5 {[%emt 0:30:46]} 42. Kh2 {[%emt 0:00:13]} h5 {[%emt 0:00:21]} 43. Be5 {[%emt 0:02:08]} h4 {[%emt 0:00:47]} 44. Kg2 {[%emt 0:00:16]} g4 {[%emt 0:00:22]} 45. hxg4 {[%emt 0:00:33]} Bxg4 {[%emt 0:00:05]} 46. Kf2 {[%emt 0:00:20]} h3 {[%emt 0:01:30]} 47. Ke3 {[%emt 0:00:21]} h2 {[%emt 0:00:14]} 48. Bxh2 {[%emt 0:00:07]} Kc8 {[%emt 0:00:39]} 49. Kd4 {[%emt 0:00:19]} Be6 {[%emt 0:00:13]} 50. Kc5 {[%emt 0:00:43]} Bd7 {[%emt 0:00:20]} 51. Kd6 {[%emt 0:00:17]} Be8 {[%emt 0:00:24]} 1/2-1/2

[Event "DVM U16w 2024"]
[Site "Neumuenster"]
[Date "2024.12.29"]
[Round "6"]
[White "Margaryan, Sofia"]
[Black "Roessling, Laura Marie"]
[Result "1-0"]
[ECO "D36"]
[WhiteElo "1532"]
[BlackElo "1607"]
[Annotator "NA RC"]
[PlyCount "73"]
[EventDate "2024.12.23"]
[EventType "team-tourn"]
[EventRounds "7"]
[EventCountry "GER"]
[SourceTitle "playchess.com"]
[Source "ChessBase"]
[SourceQuality "1"]
[TimeControl "40/5400+30:1800+30"]

1. d4 {[%emt 0:00:03]} d5 {[%emt 0:00:12]} 2. c4 {[%emt 0:00:09]} e6 {[%emt 0:00:13]} 3. Nc3 {[%emt 0:00:09]} Nf6 {[%emt 0:00:13]} 4. cxd5 {[%emt 0:00:23]} exd5 {[%emt 0:00:16]} 5. Bg5 {[%emt 0:00:10]} Be7 {[%emt 0:00:33]} 6. e3 {[%emt 0:00:10]} O-O {[%emt 0:00:45]} 7. Bd3 {[%emt 0:00:10]} c6 {[%emt 0:00:47]} 8. h3 {[%emt 0:01:20]} Re8 {[%emt 0:05:41]} 9. Bxf6 {[%emt 0:03:47]} Bxf6 {[%emt 0:00:50]} 10. Nf3 {[%emt 0:00:11]} Nd7 {[%emt 0:01:47]} 11. Qc2 {[%emt 0:02:16]} h6 {[%emt 0:01:03]} 12. O-O {[%emt 0:00:09]} Nf8 {[%emt 0:03:59]} 13. b4 {[%emt 0:12:36]} Ne6 {[%emt 0:04:35]} 14. b5 {[%emt 0:04:04]} cxb5 {[%emt 0:02:46]} 15. Bxb5 {[%emt 0:00:50]} Re7 {[%emt 0:04:34]} 16. Qb3 {[%emt 0:01:22]} Nc7 {[%emt 0:01:18]} 17. Bd3 {[%emt 0:01:26]} b6 {[%emt 0:02:14]} 18. a4 {[%emt 0:05:04]} Re6 {[%emt 0:03:14]} 19. a5 {[%emt 0:15:30]} Be7 {[%emt 0:03:58]} 20. a6 {[%emt 0:01:41]} Rf6 {[%emt 0:01:16]} 21. Be2 {[%emt 0:03:07]} Rg6 {[%emt 0:05:23]} 22. Ne5 {[%emt 0:07:50]} Rf6 {[%emt 0:02:19]} 23. Rfc1 {[%emt 0:09:34]} Rd6 {[%emt 0:07:35]} 24. Nb5 {[%emt 0:01:15]} Nxb5 {[%emt 0:00:57]} 25. Bxb5 {[%emt 0:00:15]} Be6 {[%emt 0:02:25]} 26. Rc3 {[%emt 0:02:25]} Bf6 {[%emt 0:01:40]} 27. Nc6 {[%emt 0:00:29]} Qf8 {[%emt 0:00:54]} 28. Rac1 {[%emt 0:00:37]} Kh7 {[%emt 0:02:49]} 29. Qc2+ {[%emt 0:01:21]} g6 {[%emt 0:00:58]} 30. Bd3 {[%emt 0:00:22]} Qg7 {[%emt 0:01:53]} 31. f4 {[%emt 0:01:57]} Bd7 {[%emt 0:02:40]} 32. Ne5 {[%emt 0:01:25]} Bh4 {[%emt 0:02:04]} 33. Rc7 {[%emt 0:01:40]} Be8 {[%emt 0:02:36]} 34. Rc8 {[%emt 0:01:34]} Rxc8 {[%emt 0:01:50]} 35. Qxc8 {[%emt 0:00:12]} Re6 {[%emt 0:01:13]} 36. Rc7 {[%emt 0:01:16]} Qf8 {[%emt 0:04:18]} 37. Qxe6 {[%emt 0:01:11]} 1-0

[Event "DVM U16w 2024"]
[Site "Neumuenster"]
[Date "2024.12.29"]
[Round "6"]
[White "Le, Thao-Linh"]
[Black "Cao, Weiqi"]
[Result "1-0"]
[ECO "B01"]
[WhiteElo "1510"]
[BlackElo "1610"]
[Annotator "NA RC"]
[PlyCount "115"]
[EventDate "2024.12.23"]
[EventType "team-tourn"]
[EventRounds "7"]
[EventCountry "GER"]
[SourceTitle "playchess.com"]
[Source "ChessBase"]
[SourceQuality "1"]
[TimeControl "40/5400+30:1800+30"]

1. e4 {[%emt 0:00:01]} d5 {[%emt 0:00:07]} 2. exd5 {[%emt 0:00:07]} Qxd5 {[%emt 0:00:08]} 3. Nc3 {[%emt 0:00:04]} Qd6 {[%emt 0:00:07]} 4. d4 {[%emt 0:00:07]} Nf6 {[%emt 0:00:18]} 5. Nf3 {[%emt 0:00:12]} c6 {[%emt 0:00:08]} 6. Bc4 {[%emt 0:00:27]} Bg4 {[%emt 0:00:20]} 7. Be3 {[%emt 0:00:52]} e6 {[%emt 0:00:24]} 8. Qe2 {[%emt 0:01:19]} Be7 {[%emt 0:00:53]} 9. O-O-O {[%emt 0:01:41]} Nbd7 {[%emt 0:01:59]} 10. h3 {[%emt 0:01:09]} Bh5 {[%emt 0:02:05]} 11. Kb1 {[%emt 0:03:55]} Nb6 {[%emt 0:02:49]} 12. Bd3 {[%emt 0:04:15]} Nbd5 {[%emt 0:04:32]} 13. Nxd5 {[%emt 0:03:12]} Nxd5 {[%emt 0:00:30]} 14. Bc1 {[%emt 0:06:34]} Nf4 {[%emt 0:04:34]} 15. Bxf4 {[%emt 0:02:40]} Qxf4 {[%emt 0:01:26]} 16. g4 {[%emt 0:01:26]} Bg6 {[%emt 0:00:22]} 17. Ne5 {[%emt 0:02:31]} Bxd3 {[%emt 0:04:07]} 18. Rxd3 {[%emt 0:03:38]} Bf6 {[%emt 0:03:11]} 19. h4 {[%emt 0:07:45]} Bxe5 {[%emt 0:05:12]} 20. dxe5 {[%emt 0:02:17]} Qb4 {[%emt 0:04:06]} 21. Rhd1 {[%emt 0:02:22]} Qe7 {[%emt 0:02:28]} 22. g5 {[%emt 0:02:31]} Kf8 {[%emt 0:03:18]} 23. Rd7 {[%emt 0:00:00]} Qe8 {[%emt 0:02:48]} 24. Qd2 {[%emt 0:02:03]} g6 {[%emt 0:01:52]} 25. Qf4 {[%emt 0:02:31]} b6 {[%emt 0:22:24]} 26. Rc7 {[%emt 0:01:38]} f5 {[%emt 0:04:53]} 27. exf6 {[%emt 0:01:48]} Rd8 {[%emt 0:02:56]} 28. Rxd8 {[%emt 0:00:15]} Qxd8 {[%emt 0:00:11]} 29. Rxc6 {[%emt 0:00:46]} Qd1+ {[%emt 0:06:30]} 30. Qc1 {[%emt 0:00:06]} Qd7 {[%emt 0:00:39]} 31. Qh1 {[%emt 0:01:09]} h6 {[%emt 0:01:42]} 32. Rc4 {[%emt 0:03:37]} hxg5 {[%emt 0:03:14]} 33. b3 {[%emt 0:00:35]} Rxh4 {[%emt 0:05:15]} 34. Rxh4 {[%emt 0:00:14]} gxh4 {[%emt 0:00:46]} 35. Qxh4 {[%emt 0:00:11]} Qd1+ {[%emt 0:00:44]} 36. Kb2 {[%emt 0:00:05]} Qh5 {[%emt 0:00:38]} 37. Qd4 {[%emt 0:01:26]} Qd5 {[%emt 0:02:47]} 38. Qxd5 {[%emt 0:00:21]} exd5 {[%emt 0:00:07]} 39. Kc3 {[%emt 0:00:05]} Kf7 {[%emt 0:00:19]} 40. Kd4 {[%emt 0:00:17]} Kxf6 {[%emt 0:00:38]} 41. Kxd5 {[%emt 0:31:27]} Kf5 {[%emt 0:31:46]} 42. c4 {[%emt 0:00:24]} Kf4 {[%emt 0:00:57]} 43. b4 {[%emt 0:00:07]} Kf5 {[%emt 0:06:06]} 44. c5 {[%emt 0:00:28]} Kf6 {[%emt 0:01:12]} 45. Kd6 {[%emt 0:00:09]} g5 {[%emt 0:00:00]} 46. c6 {[%emt 0:00:00]} g4 {[%emt 0:00:00]} 47. c7 {[%emt 0:00:00]} g3 {[%emt 0:00:00]} 48. fxg3 {[%emt 0:00:00]} Kf5 {[%emt 0:00:00]} 49. c8=Q+ {[%emt 0:00:00]} Ke4 {[%emt 0:00:00]} 50. Qc4+ {[%emt 0:00:00]} Kf3 {[%emt 0:00:00]} 51. Ke5 {[%emt 0:00:00]} b5 {[%emt 0:00:00]} 52. Qe4+ {[%emt 0:00:00]} Kf2 {[%emt 0:00:00]} 53. Kf4 {[%emt 0:00:00]} a5 {[%emt 0:00:00]} 54. Qe3+ {[%emt 0:00:00]} Kg2 {[%emt 0:00:00]} 55. Kg4 {[%emt 0:00:00]} a4 {[%emt 0:00:00]} 56. Qe2+ {[%emt 0:00:00]} Kh1 {[%emt 0:00:00]} 57. Kh3 {[%emt 0:00:00]} a3 {[%emt 0:00:00]} 58. Qf1# {[%emt 0:00:00]} 1-0

[Event "DVM U16w 2024"]
[Site "Neumuenster"]
[Date "2024.12.29"]
[Round "6"]
[White "Peglau, Lorena"]
[Black "Leuchsenring, Delia"]
[Result "1-0"]
[ECO "D02"]
[WhiteElo "1508"]
[BlackElo "1500"]
[Annotator "NA RC"]
[PlyCount "131"]
[EventDate "2024.12.23"]
[EventType "team-tourn"]
[EventRounds "7"]
[EventCountry "GER"]
[SourceTitle "playchess.com"]
[Source "ChessBase"]
[SourceQuality "1"]
[TimeControl "40/5400+30:1800+30"]

1. d4 {[%emt 0:00:02]} d5 {[%emt 0:00:06]} 2. Nf3 {[%emt 0:00:06]} Nc6 {[%emt 0:00:48]} 3. Bf4 {[%emt 0:00:10]} Nf6 {[%emt 0:00:30]} 4. e3 {[%emt 0:00:07]} Bf5 {[%emt 0:01:00]} 5. c4 {[%emt 0:00:09]} Nb4 {[%emt 0:03:08]} 6. Qa4+ {[%emt 0:01:24]} Nc6 {[%emt 0:00:54]} 7. Nc3 {[%emt 0:02:33]} e6 {[%emt 0:00:49]} 8. Ne5 {[%emt 0:01:30]} Nd7 {[%emt 0:10:34]} 9. Nxc6 {[%emt 0:01:14]} bxc6 {[%emt 0:01:53]} 10. Qxc6 {[%emt 0:00:14]} Rc8 {[%emt 0:01:37]} 11. cxd5 {[%emt 0:01:28]} exd5 {[%emt 0:01:12]} 12. Nxd5 {[%emt 0:01:17]} Bd6 {[%emt 0:02:38]} 13. Be2 {[%emt 0:12:41]} Bxf4 {[%emt 0:03:46]} 14. Nxf4 {[%emt 0:00:17]} O-O {[%emt 0:00:36]} 15. O-O {[%emt 0:00:08]} Nf6 {[%emt 0:03:06]} 16. Rac1 {[%emt 0:01:59]} Be4 {[%emt 0:04:37]} 17. Qa6 {[%emt 0:01:08]} Ra8 {[%emt 0:01:07]} 18. Bd3 {[%emt 0:00:54]} Qb8 {[%emt 0:03:18]} 19. b3 {[%emt 0:00:58]} Bb7 {[%emt 0:01:34]} 20. Qc4 {[%emt 0:00:37]} c6 {[%emt 0:01:36]} 21. Rc2 {[%emt 0:00:58]} g5 {[%emt 0:03:52]} 22. Ne2 {[%emt 0:00:50]} Ng4 {[%emt 0:00:34]} 23. Ng3 {[%emt 0:00:39]} h5 {[%emt 0:00:49]} 24. Qc5 {[%emt 0:02:34]} f6 {[%emt 0:02:30]} 25. Qf5 {[%emt 0:00:20]} Rf7 {[%emt 0:00:16]} 26. Bc4 {[%emt 0:01:55]} Qc7 {[%emt 0:03:07]} 27. Qg6+ {[%emt 0:05:54]} Kf8 {[%emt 0:00:43]} 28. Qxf7+ {[%emt 0:01:17]} Qxf7 {[%emt 0:00:11]} 29. Bxf7 {[%emt 0:00:04]} Kxf7 {[%emt 0:01:10]} 30. Nxh5 {[%emt 0:00:57]} Rh8 {[%emt 0:01:08]} 31. h3 {[%emt 0:00:42]} Nxe3 {[%emt 0:00:40]} 32. fxe3 {[%emt 0:00:27]} Rxh5 {[%emt 0:00:15]} 33. Rf5 {[%emt 0:00:59]} Ke6 {[%emt 0:01:19]} 34. Ra5 {[%emt 0:00:58]} a6 {[%emt 0:00:40]} 35. Rc4 {[%emt 0:02:06]} Rh7 {[%emt 0:00:38]} 36. Kf2 {[%emt 0:01:46]} Re7 {[%emt 0:01:48]} 37. Rcc5 {[%emt 0:05:36]} Rh7 {[%emt 0:05:27]} 38. Kf3 {[%emt 0:05:51]} Rh8 {[%emt 0:03:40]} 39. Ke2 {[%emt 0:00:58]} Rh7 {[%emt 0:00:35]} 40. Kd3 {[%emt 0:00:15]} Rh8 {[%emt 0:00:47]} 41. Rc4 {[%emt 0:30:53]} Rh7 {[%emt 0:32:25]} 42. Rb4 {[%emt 0:00:17]} Kd6 {[%emt 0:02:20]} 43. e4 {[%emt 0:01:04]} Ke6 {[%emt 0:01:23]} 44. Rb6 {[%emt 0:01:02]} Rd7 {[%emt 0:02:13]} 45. Kc3 {[%emt 0:02:31]} Kf7 {[%emt 0:01:12]} 46. Ra4 {[%emt 0:00:18]} Rc7 {[%emt 0:04:19]} 47. Rab4 {[%emt 0:00:34]} Bc8 {[%emt 0:00:18]} 48. Rb8 {[%emt 0:00:54]} Ke6 {[%emt 0:01:25]} 49. Rc4 {[%emt 0:00:35]} Bb7 {[%emt 0:01:40]} 50. Re8+ {[%emt 0:00:13]} Kf7 {[%emt 0:00:22]} 51. Rh8 {[%emt 0:00:45]} Kg7 {[%emt 0:00:20]} 52. Rd8 {[%emt 0:00:29]} Re7 {[%emt 0:01:07]} 53. Kd3 {[%emt 0:00:26]} Kg6 {[%emt 0:01:11]} 54. Rb4 {[%emt 0:08:25]} Rc7 {[%emt 0:03:35]} 55. Rc4 {[%emt 0:04:29]} Re7 {[%emt 0:01:00]} 56. Rc1 {[%emt 0:01:32]} Rh7 {[%emt 0:00:53]} 57. d5 {[%emt 0:00:24]} cxd5 {[%emt 0:00:33]} 58. exd5 {[%emt 0:00:01]} Kh5 {[%emt 0:01:35]} 59. Rc2 {[%emt 0:01:02]} g4 {[%emt 0:00:24]} 60. hxg4+ {[%emt 0:00:24]} Kxg4 {[%emt 0:00:17]} 61. Rf2 {[%emt 0:00:50]} Rh6 {[%emt 0:00:55]} 62. d6 {[%emt 0:02:17]} Kg5 {[%emt 0:00:43]} 63. d7 {[%emt 0:00:26]} Rh1 {[%emt 0:00:31]} 64. Rg8+ {[%emt 0:00:22]} Kh6 {[%emt 0:00:14]} 65. d8=Q {[%emt 0:00:10]} Rd1+ {[%emt 0:00:07]} 66. Rd2 {[%emt 0:00:06]} 1-0